Cogmind - Beta 17 @@@ ROGUE MODE // 2026.08.01 @ 16:44:56 Player: Petvaria Result: Destroyed by D-53 Grenadier with Mini Grenade Launcher Performance ------------- Evolutions (0) 0 Regions Visited (2) 400 Robots Destroyed (17) 85 Value Destroyed (422) 422 Prototype IDs (0) 0 Alien Tech Used (0) 0 Bonus (0) 0 TOTAL SCORE: 907 Bonus ------- None Cogmind --------- Core Integrity 0/250 Matter 229/300 Energy 246/250 System Corruption 0% Temperature Cool (0) Movement Treading (240) Ox1 Location -10/Mines Parts ------- > --- POWER (1) -------- Ion Engine > --- PROPULSION (2) --- Light Treads Light Treads > --- UTILITY (2) ------ Cooling System High-capacity Storage Unit > --- WEAPON (2) ------- Small Laser Particle Gun > --- INVENTORY (20) --- Ion Engine Light Treads Light Treads Light Treads Wheel Wheel Cooling System High-capacity Storage Unit Improved Terrain Scanner Hacking Suite Tractor Beam Medium Laser Particle Gun Particle Gun Particle Gun Light Assault Rifle Light Cannon Grenade Launcher Grenade Launcher Datajack Peak State ------------ > --- POWER ------------ Ion Engine > --- PROPULSION ------- Light Treads Light Treads > --- UTILITY ---------- Cooling System High-capacity Storage Unit > --- WEAPON ----------- Small Laser Particle Gun > --- INVENTORY -------- Ion Engine Ion Engine Light Treads Light Treads Light Treads Wheel Wheel Improved Heat Sink High-capacity Storage Unit Improved Terrain Scanner Hacking Suite Tractor Beam Medium Laser Particle Gun Particle Gun Particle Gun Light Cannon Grenade Launcher Grenade Launcher Datajack [Rating: 11] Favorites ----------- Power Ion Engine Engine Ion Engine Propulsion Light Treads Treads Light Treads Utility High-capacity Storage Unit Device Heat Sink Storage High-capacity Storage Unit Weapon Small Laser Energy Gun Small Laser Launcher Grenade Launcher Build | -11 -10 -10 ------- Run | Yrd Mat Min Slots Evolved . | . . . Power . | . . . Propulsion . | . . . Utility . | . . . Weapon . | . . . Parts Attached 16 | 6 9 1 Power 2 | 1 . 1 Engine 2 | 1 . 1 Core . | . . . Reactor . | . . . Propulsion 3 | 2 1 . Treads 3 | 2 1 . Leg . | . . . Wheel . | . . . Hover . | . . . Flight . | . . . Utility 5 | 1 4 . Device 2 | . 2 . Storage 3 | 1 2 . Processor . | . . . Hackware . | . . . Protection . | . . . Artifact . | . . . Weapon 6 | 2 4 . Energy Gun 5 | 2 3 . Energy Cannon . | . . . Ballistic Gun . | . . . Ballistic Cannon . | . . . Launcher 1 | . 1 . Special Weapon . | . . . Impact Weapon . | . . . Slashing Weapon . | . . . Piercing Weapon . | . . . Special Melee Weapon . | . . . Unidentified Prototypes . | . . . Parts Lost . | . . . Power . | . . . Propulsion . | . . . Utility . | . . . Weapon . | . . . Highest Loss Streak . | . . . To Critical Strikes . | . . . Average Backups 16 | 4 16 20 Power 1 | . 1 1 Propulsion 5 | 2 5 5 Utility 3 | . 3 5 Weapon 5 | . 5 7 Tool/Special . | . . . Unused Backups 23 | . 7 16 Power 2 | . 1 1 Propulsion 6 | . 2 4 Utility 6 | . 1 5 Weapon 8 | . 3 5 Tool/Special 1 | . . 1 Average Slot Usage (%) 94 | . 93 100 Engine 14 | . 14 14 Treads 27 | . 27 28 Device 9 | . 8 14 Storage 14 | . 14 14 Energy Gun 27 | . 27 28 Peak Build Rating 11 | 6 11 11 Average Rating 8 | 5 8 11 On Entrance 5 | . 6 11 Avg Prop Armor Cover (%) . | . . . Naked Turns . | . . . Heaviest Build 51 | 13 51 51 Greatest Support 40 | 40 40 40 Greatest Overweight (x) 1 | . 1 1 Average Overweight (x) . | . . 1 Largest Inventory Capacity 20 | 8 20 20 Average Capacity 17 | 7 18 20 Most Carried 20 | 7 20 20 Average Carried 16 | 4 16 19 Final Capacity 20 | 8 20 20 Final Carried 20 | 7 20 20 Class Distribution -------------------- 100% | Mutant Dominant Class ---------------- Mutant | -10/Materials Mutant | -10/Mines Resources | -11 -10 -10 ----------- Run | Yrd Mat Min Matter Collected 324 | 255 50 19 Remotely . | . . . Salvage Created 688 | 110 532 46 Parts 36 | 5 25 6 Haulers Intercepted 1 | . 1 . Recyclers Shooed 3 | . 3 . Parts Field Recycled . | . . . Retrieved Matter . | . . . Parts Self-Destructed . | . . . Prevented . | . . . Parts Restored . | . . . Kills | -11 -10 -10 ------- Run | Yrd Mat Min Combat Hostiles Destroyed 12 | . 9 3 Guns 12 | . 9 3 Classes Destroyed 6 | 2 3 1 Tunneler 1 | 1 . . Hauler 1 | . 1 . Recycler 2 | 1 1 . Operator 1 | . 1 . Swarmer 3 | . . 3 Grunt 9 | . 9 . Best Kill Streak 3 | 2 2 3 Combat Bots Only 3 | . 2 3 Max Kills in Single Turn 1 | 1 1 1 Gunslinging . | . . . Exploded . | . . . Melee . | . . . Uniques/NPCs Destroyed . | . . . Combat | -11 -10 -10 -------- Run | Yrd Mat Min Hostile Shots Fired 65 | . 44 21 Missed 14 | . 10 4 Hits 51 | . 34 17 Projectile 51 | . 34 17 AOE 7 | . . 7 Damage Taken 868 | . 493 375 Core 255 | . 51 204 Absorbed by Shields . | . . . Regen/Repaired (Parts) 123 | . 123 . Core Remaining (%) 100 | 100 . . Volleys Fired 46 | 4 34 8 Largest 2 | 2 2 2 Hottest 105 | 80 90 105 Shots Fired 92 | 8 68 16 Gun 91 | 8 67 16 Cannon . | . . . Launcher 1 | . 1 . Special . | . . . Kinetic . | . . . Thermal 72 | 4 52 16 Explosive 1 | . 1 . Electromagnetic 19 | 4 15 . Robot Hit Streak 10 | 3 8 10 Robot Miss Streak 3 | 2 3 2 Penetration Max . | . . . Secondary Targets 2 | . . 2 Max Gunslinging Chain 1 | . . 1 Shots Hit Robots 62 | 4 47 11 Core Hits 33 | 2 27 4 Critical Kills . | . . . Critical Parts Destroyed . | . . . Critical Strikes 1 | . . 1 Burn 1 | . . 1 Melee Attacks . | . . . Impact . | . . . Slashing . | . . . Piercing . | . . . Sneak Attacks . | . . . Combat Hostiles . | . . . Follow-up Attacks . | . . . Damage Inflicted 897 | 55 691 151 Guns 752 | 49 552 151 Cannons . | . . . Explosions 110 | . 110 . Melee . | . . . Ramming 35 | 6 29 . Kinetic . | . . . Thermal 665 | 21 493 151 Explosive 26 | . 26 . Electromagnetic 171 | 28 143 . Impact . | . . . Slashing . | . . . Piercing . | . . . Highest Corruption . | . . . Average Corruption . | . . . Corruption Purged . | . . . Corruption Blocked . | . . . Overload Shots . | . . . Overflow Damage . | . . . Projectiles . | . . . Explosions . | . . . Melee . | . . . Knockbacks . | . . . Impact . | . . . Kinetic . | . . . Secondary . | . . . Self-Inflicted Damage 37 | . 37 . Shots 1 | . 1 . Rammed 9 | 1 8 . Targets Rammed 9 | 1 8 . Kicked . | . . . Crushed . | . . . Highest Temperature 243 | 72 243 . Average Temperature 59 | 38 62 . Received Heat Transfer 255 | . 255 . Siege Activations . | . . . Martial Activations . | . . . Shielding Activations . | . . . Robots Disrupted . | . . . Combat Hostiles . | . . . Robots Corrupted . | . . . Combat Hostiles . | . . . Parts Fried . | . . . Impact Corruptions . | . . . Robots Melted . | . . . Combat Hostiles . | . . . Parts Melted 3 | . 3 . Heat Transferred 1677 | 50 1193 434 Parts Sabotaged . | . . . Parts Stolen . | . . . Parts Stripped . | . . . Power Chain Reactions 1 | . 1 . Alert | -11 -10 -10 ------- Run | Yrd Mat Min Maximum Alert Level . | . . . Low Security (%) 100 | 100 100 100 Level 1 . | . . . Level 2 . | . . . Level 3 . | . . . Level 4 . | . . . Level 5 . | . . . High Security . | . . . Max Security . | . . . Peak Influence 104 | 10 104 70 Initial . | . . . Average 19 | . 21 17 Influence Increases 390 | 10 310 70 Destroy 0b10 Robot/C 240 | . 180 60 Destroy 0b10 Robot/NC 25 | 10 15 . Destroy Leader 62 | . 52 10 Successful Hack 10 | . 10 . Disable Machine 15 | . 15 . Destroy Structure 8 | . 8 . Lose Combat Pursuer 30 | . 30 . Influence Decreases 350 | 10 310 30 Time Decay 350 | 10 310 30 Squads Dispatched 2 | . 2 . Investigation . | . . . Extermination . | . . . Reinforcement 2 | . 2 . Assault . | . . . Garrison . | . . . Intercept . | . . . Searches Triggered . | . . . Construction Impeded . | . . . Haulers Reinforced . | . . . Active Scanning Responses . | . . . Cargo Convoy Interrupts . | . . . Stealth | -11 -10 -10 --------- Run | Yrd Mat Min Distress Signals 2 | . 2 . Communications Jammed . | . . . Distress Signals . | . . . Times Spotted 23 | . 17 6 Peak Tracking Total 4 | . 4 3 Tactical Retreats 1 | . 1 . Traps | -11 -10 -10 ------- Run | Yrd Mat Min Traps Triggered 2 | . 2 . Indirectly . | . . . Trap Hack Attempts . | . . . Triggered . | . . . Disarmed . | . . . Reprogrammed . | . . . Reused . | . . . Traps Extracted . | . . . Installed . | . . . Triggered . | . . . Machines | -11 -10 -10 ---------- Run | Yrd Mat Min Machines Disabled 1 | . 1 . Max in Single Turn 1 | . 1 . Machines Repaired . | . . . Machines Dismantled . | . . . Machines Sabotaged . | . . . Overloaded Fab Kills . | . . . Hacking | -11 -10 -10 --------- Run | Yrd Mat Min Machines Accessed 4 | . 4 . Terminals 3 | . 3 . Fabricators . | . . . Repair Stations 1 | . 1 . Recycling Units . | . . . Scanalyzers . | . . . Garrison Access . | . . . Total Hacks 14 | . 14 . Successful 5 | . 5 . Failed 8 | . 8 . Catastrophic . | . . . Database Lockouts 1 | . 1 . Manual 10 | . 10 . Terminals 10 | . 10 . Fabricators . | . . . Repair Stations 4 | . 4 . Recycling Units . | . . . Scanalyzers . | . . . Garrison Access . | . . . Terminal Hacks 1 | . 1 . Part Schematic 1 | . 1 . Fabricator Hacks . | . . . Repair Station Hacks 4 | . 4 . Scan Component 2 | . 2 . Repair 2 | . 2 . Recycling Unit Hacks . | . . . Scanalyzer . | . . . Garrison Access Hacks . | . . . Unauthorized Hacks . | . . . Terminals . | . . . Fabricators . | . . . Repair Stations . | . . . Recycling Units . | . . . Scanalyzers . | . . . Garrison Access . | . . . Data Cores Recovered 1 | . 1 . Used . | . . . Hacking Detections 4 | . 4 . Full Trace Events . | . . . Feedback Events . | . . . Feedback Blocked . | . . . Robot Schematics Acquired . | . . . Robots Built . | . . . Authchips . | . . . Time . | . . . Total Robot Build Rating . | . . . Part Schematics Acquired 1 | . 1 . Parts Built . | . . . Authchips . | . . . Time . | . . . Total Part Build Rating . | . . . Part Studies Acquired . | . . . Parts Repaired 2 | . 2 . Time 52 | . 52 . Parts Recycled . | . . . Recycled Matter . | . . . Retrieved Matter . | . . . Retrieved Components . | . . . Parts Scanalyzed . | . . . Part Schematics Acquired . | . . . Parts Damaged . | . . . Bothacking | -11 -10 -10 ------------ Run | Yrd Mat Min Used RIF Installer . | . . . Robots Hacked . | . . . Non-combat . | . . . Combat . | . . . Robot Hacks Applied . | . . . Relay Couplers Released . | . . . Fabnet Peak Effective % . | . . . Robots Rewired . | . . . Allies Hacked . | . . . Hacks Repelled . | . . . Allies | -11 -10 -10 -------- Run | Yrd Mat Min Total Allies . | . . . Largest Group . | . . . Highest-Rated Group . | . . . Highest-Rated Ally . | . . . Total Orders . | . . . Ally Attacks . | . . . Total Damage . | . . . Kills . | . . . Allies Corrupted . | . . . Allies Melted . | . . . Intel | -11 -10 -10 ------- Run | Yrd Mat Min Active Infowar (turns) . | . . . Robot Analysis Total . | . . . Derelict Logs Recovered 1 | . . 1 Drone Launches . | . . . Drone Recoveries . | . . . Exploration | -11 -10 -10 ------------- Run | Yrd Mat Min Turns Passed 1878 | 144 1550 184 Spaces Moved 775 | 79 633 63 Core 13 | 13 . . Treads 762 | 66 633 63 Legs . | . . . Wheels . | . . . Hover . | . . . Flight . | . . . Fastest Speed 50 | 50 160 240 Average Speed 205 | 141 210 240 Slowest Speed 240 | 160 240 240 Overloaded Moves . | . . . Propulsion Burnouts . | . . . Robots Hopped . | . . . Potential Cave-ins . | . . . Cave-ins Triggered . | . . . Exploration Rate (%) 40 | 4 92 24 Regions Visited 2 Branch Regions 1 Pre-discovered Areas . | . . . Known Exits Taken . | . . . Unknown Exits Taken 2 | 1 1 . Scrap Searched . | . . . Spaces Dug . | . . . Terrain Destroyed 7 | . 7 . Melee . | . . . Projectile . | . . . AOE 7 | . 7 . Terrain Rammed . | . . . Walls Destroyed . | . . . Machines Disabled . | . . . Actions | -11 -10 -10 --------- Run | Yrd Mat Min Total 961 | 102 779 80 Wait 62 | . 56 6 Move 773 | 78 632 63 Hop . | . . . Pick Up 38 | 13 24 1 Fast Attach 5 | . 5 . Attach 9 | 6 3 . Detach . | . . . Swap 6 | . 5 1 Drop 13 | . 12 1 Fire 46 | 4 34 8 Melee . | . . . Ram . | . . . Kick . | . . . Crush 9 | 1 8 . Escape Stasis . | . . . Rewire . | . . . Trap . | . . . Miscellaneous . | . . . Route ------- -11/Scrapyard -10/Materials (discovered 4 exits: [*Mat x3] / [*Min]) -10/Mines History --------- Turn | Location | Event 6 | -11/Scrapyard | Discovered new exit (range 15) 145 | -11/Scrapyard | Entered Materials 222 | -10/Materials | Central database locked down 315 | -10/Materials | Build established: Mutant 414 | -10/Materials | Discovered new exit (range 4) 606 | -10/Materials | Discovered new exit (range 3) 881 | -10/Materials | Repaired Lgt. Treads 909 | -10/Materials | Repaired Lgt. Treads 1207 | -10/Materials | Discovered new exit (range 16) 1381 | -10/Materials | Discovered new exit (range 10) 1695 | -10/Materials | Entered Mines 1810 | -10/Mines | Learned location of 1 exit from Materials 1844 | -10/Mines | Assembled infested the area 1877 | -10/Mines | Core integrity fell below 50% 1879 | -10/Mines | Core integrity fell below 20% 1879 | -10/Mines | Destroyed by D-53 Grenadier with Mini Grenade Launcher Last Messages --------------- R-06 Scavenger collects Flight Unit. Dropped Ion Engine. Acquired Lgt. Assault Rifle. K-01 Serf collects debris. Acquired 19 matter. R-06 Scavenger collects Ion Engine. R-06 Scavenger collects Flight Unit. K-01 Serf collects debris. R-06 Scavenger collects Flight Unit. K-01 Serf collects debris. ALERT: Infestation in the mines, dispatching Demolisher response squad. K-01 Serf collects debris. K-01 Serf cleans the Matter Pump. K-01 Serf collects debris. C-45 Heavy ARC bursts open, deploying its payload. D-53 Grenadier unfolds itself. R-06 Scavenger destroyed. Matter Pump disabled. Map ----- +----------------------------------------------------+ | | | | | | | | | ?????????????????????????????????????????????????? | | ?????????????????????????????????????????????????? | | ?????????????????????????????????????????????????? | | ?????????????????????????????????????????????????? | | ?????????????????????????????????????????????????? | | ?????????????????????????????????????????????????? | | ?????????????????????????????????????????????????? | | ?????????????????????????????????????????????????? | | ?????????????????????????????????????????????????? | | ?????????????????????????????????????????????????? | | ?????????????????????????????????????????????????? | | ?????????????????????????????????????????????????? | | ?????????????????????????????????#???????????????? | | ???????????????????????????????? #???????????????? | | ??????????????????????????????? #???????????????? | | ??????????????????????????????? #???????????????? | | ???????????????????????######? #???????????????? | | ?????????????????????### ## ##??????????????? | | ????????????????????## # #??????????????? | | ????????????????????# #??????????????? | | ????????????????????# d%d #??????????????? | | ?????????????????????# @ #???????????????? | | ???????????????????# ##???????????????? | | ???????????????????# ##????????????????? | | ???????????????????# " %= #?????????????????? | | ???????????????###### " != #?????????????????? | | ???????????????# " ##?????????????????? | | ???????????????# # ##??????????????????? | | ???????????????# #### ## # ??????????????????? | | ???????????????# ######?#u #####?????????????????? | | ??????????????## ### #?????????????????????? | | ?????????????## ##????????????????????? | | ?????????????# #????????????????????? | | ?????????????# #????????????????????? | | ?????????????# #????????????????????? | | ?????????????## ##????????????????????? | | ??????????????## ## #?????????????????????? | | ???????????????## ##?# ???????????????????? | | ????????????????## ##??# ###???????????????????? | | ????????????????## ##???##?????????????????????? | | ?????#####?????## ##?????????????????????????? | | ????## ####### ##????????????????????????? | | ????# ## ##???????????????????????? | | ????# ##??????????????????????? | | ?????# #??????????????????????? | | ????## #??????????????????????? | +----------------------------------------------------+ Best States ------------- Heat Dissipation 47 Energy Generation 10 Energy Capacity 250 Matter Stores 300 Matter Capacity 300 Sight Range 16 Terrain Scan Density 10 Evasion (%) 50 Recoil Reduction 2 Item Schematics ----------------- Huge Storage Unit | -10/Materials | Hacked Robot Schematics ------------------ None Fabricated ------------ Nothing Repaired ---------- Lgt. Treads | 34% | -10/Materials Lgt. Treads | 77% | -10/Materials Studied --------- None Alien Tech Used ----------------- None Achievements -------------- None Challenges ------------ None Game ------ Seed CoilSuspensionInterface Manual? 0 Play Time 00:07:42 Cumulative 541.1 hours Start 2026.08.01 @ 16:37:53 End 2026.08.01 @ 16:44:56 Sessions 1 Manual Loads 0 Difficulty Rogue Special Mode None Game No. 307 Rogue 307 Adventurer 0 Explorer 0 Win Type - Total 36 Types 17/2/7/2/1/1/1/2/1/2 Lore% 97 Gallery% 92 Achievement% 85 Wizard Run 0 Options --------- Layout 1 ASCII 0 Keyboard 0 Movement Numpad Keybinds 0 Fullscreen 1 Font 24/Proggy Map View 50x35 Zoom Use 0% Tactical HUD 0 Map Filters NONE Filters NONE Steam 1 RUN: 1e80b574-44ed-4f67-88bc-359689c60d68